[Event "NK Rapid Vrouwen 2019"]
[Site "Amstelveen, Netherlands"]
[Date "2019.12.01"]
[Round "6.4"]
[White "Keetman, Maaike"]
[Black "Paulet, Iozefina"]
[Result "1/2-1/2"]
[TimeControl "15m+10s"]
[BlackTitle "WGM"]
[WhiteFideId "1033697"]
[BlackFideId "1213261"]
[WhiteElo "2181"]
[BlackElo "2294"]

1. e4 {[%clk 00:15:18]} {[%emt 00:01:17]} e6 {[%clk 00:15:20]} {[%emt
00:00:01]} 2. d4 {[%clk 00:15:27]} {[%emt 00:00:01]} d5 {[%clk 00:15:29]}
{[%emt 00:00:01]} 3. Nd2 {[%clk 00:15:35]} {[%emt 00:00:01]} Nf6 {[%clk
00:15:36]} {[%emt 00:00:03]} 4. e5 {[%clk 00:15:43]} {[%emt 00:00:02]} Nfd7
{[%clk 00:15:45]} {[%emt 00:00:01]} 5. f4 {[%clk 00:15:52]} c5 {[%clk
00:15:51]} {[%emt 00:00:05]} 6. c3 {[%clk 00:16:00]} {[%emt 00:00:01]} Nc6
{[%clk 00:16:00]} 7. Ndf3 {[%clk 00:16:08]} {[%emt 00:00:01]} Be7 {[%clk
00:16:09]} {[%emt 00:00:02]} 8. g3 {[%clk 00:16:15]} {[%emt 00:00:03]} O-O
{[%clk 00:16:17]} {[%emt 00:00:02]} 9. Bh3 {[%clk 00:16:03]} {[%emt 00:00:22]}
cxd4 {[%clk 00:16:24]} {[%emt 00:00:03]} 10. cxd4 {[%clk 00:16:11]} {[%emt
00:00:01]} Qb6 {[%clk 00:16:33]} {[%emt 00:00:01]} 11. Kf1 {[%clk 00:15:55]}
{[%emt 00:00:26]} f6 {[%clk 00:16:29]} {[%emt 00:00:14]} 12. Kg2 {[%clk
00:15:38]} {[%emt 00:00:27]} Kh8 {[%clk 00:16:23]} {[%emt 00:00:17]} 13. Ne2
{[%clk 00:14:22]} {[%emt 00:01:26]} fxe5 {[%clk 00:16:30]} {[%emt 00:00:02]} 14.
fxe5 {[%clk 00:14:29]} {[%emt 00:00:03]} Ncxe5 {[%clk 00:12:19]} {[%emt
00:04:22]} 15. dxe5 {[%clk 00:14:33]} {[%emt 00:00:06]} Nxe5 {[%clk 00:12:28]}
{[%emt 00:00:01]} 16. Ned4 {[%clk 00:12:41]} {[%emt 00:02:02]} Ng6 {[%clk
00:12:17]} {[%emt 00:00:21]} 17. Qb3 {[%clk 00:10:28]} {[%emt 00:02:23]} e5
{[%clk 00:09:06]} {[%emt 00:03:21]} 18. Bxc8 {[%clk 00:07:09]} {[%emt
00:03:29]} Raxc8 {[%clk 00:08:58]} {[%emt 00:00:18]} 19. Qxb6 {[%clk 00:04:59]}
{[%emt 00:02:19]} axb6 {[%clk 00:09:06]} {[%emt 00:00:02]} 20. Nb3 {[%clk
00:05:01]} {[%emt 00:00:08]} Rc2+ {[%clk 00:08:56]} {[%emt 00:00:19]} 21. Bd2
{[%clk 00:05:04]} {[%emt 00:00:08]} Rxb2 {[%clk 00:08:15]} {[%emt 00:00:52]} 22.
Rhb1 {[%clk 00:04:27]} {[%emt 00:00:46]} Rc2 {[%clk 00:08:17]} {[%emt
00:00:08]} 23. Rc1 {[%clk 00:04:35]} {[%emt 00:00:03]} Rb2 {[%clk 00:08:26]}
{[%emt 00:00:01]} 24. Rcb1 {[%clk 00:04:21]} {[%emt 00:00:25]} Rc2 {[%clk
00:08:31]} {[%emt 00:00:05]} 25. Rc1 {[%clk 00:04:30]} Rb2 {[%clk 00:08:16]}
{[%emt 00:00:26]} 26. Rcb1 {[%clk 00:04:23]} {[%emt 00:00:02]} 1/2-1/2

[Event "NK Rapid Vrouwen 2019"]
[Site "Amstelveen, Netherlands"]
[Date "2019.12.01"]
[Round "7.1"]
[White "Paulet, Iozefina"]
[Black "Ratsma, Rosa"]
[Result "1-0"]
[TimeControl "15m+10s"]
[WhiteTitle "WGM"]
[BlackTitle "WIM"]
[WhiteFideId "1213261"]
[BlackFideId "1033662"]
[WhiteElo "2294"]
[BlackElo "2274"]

1. e4 {[%clk 00:15:19]} {[%emt 00:00:01]} c5 {[%clk 00:15:18]} {[%emt
00:00:03]} 2. Nf3 {[%clk 00:15:26]} {[%emt 00:00:02]} d6 {[%clk 00:15:27]}
{[%emt 00:00:01]} 3. d4 {[%clk 00:15:32]} {[%emt 00:00:05]} cxd4 {[%clk
00:15:35]} {[%emt 00:00:02]} 4. Nxd4 {[%clk 00:15:41]} {[%emt 00:00:01]} Nf6
{[%clk 00:15:43]} {[%emt 00:00:01]} 5. Nc3 {[%clk 00:15:47]} {[%emt 00:00:03]}
a6 {[%clk 00:15:51]} {[%emt 00:00:02]} 6. Bc4 {[%clk 00:15:54]} {[%emt
00:00:03]} e6 {[%clk 00:15:55]} {[%emt 00:00:07]} 7. Bb3 {[%clk 00:16:03]}
{[%emt 00:00:01]} b5 {[%clk 00:15:58]} {[%emt 00:00:08]} 8. Qf3 {[%clk
00:16:11]} {[%emt 00:00:01]} Qc7 {[%clk 00:15:35]} {[%emt 00:00:32]} 9. O-O
{[%clk 00:16:08]} {[%emt 00:00:14]} Be7 {[%clk 00:15:32]} {[%emt 00:00:13]} 10.
a3 {[%clk 00:16:08]} {[%emt 00:00:10]} O-O {[%clk 00:15:12]} {[%emt 00:00:29]}
11. Qg3 {[%clk 00:16:03]} {[%emt 00:00:15]} Kh8 {[%clk 00:14:33]} {[%emt
00:00:50]} 12. Bg5 {[%clk 00:15:55]} {[%emt 00:00:17]} Nh5 {[%clk 00:12:54]}
{[%emt 00:01:49]} 13. Qh4 {[%clk 00:16:02]} {[%emt 00:00:03]} Bxg5 {[%clk
00:12:59]} {[%emt 00:00:05]} 14. Qxg5 {[%clk 00:16:05]} {[%emt 00:00:06]} Nf6
{[%clk 00:12:30]} {[%emt 00:00:39]} 15. Kh1 {[%clk 00:16:05]} {[%emt 00:00:11]}
Nc6 {[%clk 00:12:18]} {[%emt 00:00:22]} 16. Nxc6 {[%clk 00:15:33]} {[%emt
00:00:42]} Qxc6 {[%clk 00:12:27]} {[%emt 00:00:01]} 17. Rae1 {[%clk 00:14:58]}
{[%emt 00:00:45]} Bb7 {[%clk 00:11:46]} {[%emt 00:00:51]} 18. f4 {[%clk
00:15:00]} {[%emt 00:00:08]} h6 {[%clk 00:11:14]} {[%emt 00:00:42]} 19. Qh4
{[%clk 00:14:35]} {[%emt 00:00:35]} a5 {[%clk 00:09:21]} {[%emt 00:02:03]} 20.
g4 {[%clk 00:14:03]} {[%emt 00:00:41]} b4 {[%clk 00:08:42]} {[%emt 00:00:50]}
21. g5 {[%clk 00:14:08]} {[%emt 00:00:05]} Ng8 {[%clk 00:08:39]} {[%emt
00:00:13]} 22. axb4 {[%clk 00:13:09]} {[%emt 00:01:09]} axb4 {[%clk 00:08:46]}
{[%emt 00:00:03]} 23. Nd1 {[%clk 00:13:18]} {[%emt 00:00:02]} d5 {[%clk
00:06:45]} {[%emt 00:02:11]} 24. Ne3 {[%clk 00:12:30]} {[%emt 00:00:57]} dxe4
{[%clk 00:05:30]} {[%emt 00:01:25]} 25. Rg1 {[%clk 00:12:38]} {[%emt 00:00:02]}
f5 {[%clk 00:03:58]} {[%emt 00:01:41]} 26. gxh6 {[%clk 00:12:40]} {[%emt
00:00:08]} Nxh6 {[%clk 00:02:58]} {[%emt 00:01:10]} 27. Rg6 {[%clk 00:12:48]}
{[%emt 00:00:02]} Kh7 {[%clk 00:02:56]} {[%emt 00:00:12]} 28. Reg1 {[%clk
00:12:55]} {[%emt 00:00:03]} Qc7 {[%clk 00:02:17]} {[%emt 00:00:49]} 29. Rxe6
{[%clk 00:11:53]} {[%emt 00:01:12]} Rae8 {[%clk 00:01:43]} {[%emt 00:00:44]} 30.
Reg6 {[%clk 00:11:21]} {[%emt 00:00:42]} Re7 {[%clk 00:01:36]} {[%emt
00:00:17]} 31. Qg5 {[%clk 00:11:03]} {[%emt 00:00:27]} Rd7 {[%clk 00:00:54]}
{[%emt 00:00:53]} 32. Rxh6+ {[%clk 00:10:55]} {[%emt 00:00:18]} 1-0

[Event "NK Rapid Vrouwen 2019"]
[Site "Amstelveen, Netherlands"]
[Date "2019.12.01"]
[Round "7.2"]
[White "Jong-Muhren, Bianca de"]
[Black "Peng, Zhaoqin"]
[Result "1/2-1/2"]
[TimeControl "15m+10s"]
[WhiteTitle "WGM"]
[BlackTitle "GM"]
[WhiteFideId "1008498"]
[BlackFideId "1004786"]
[WhiteElo "2249"]
[BlackElo "2364"]

1. e4 {[%clk 00:15:17]} {[%emt 00:00:03]} c6 {[%clk 00:15:19]} {[%emt
00:00:01]} 2. d4 {[%clk 00:15:25]} {[%emt 00:00:02]} d5 {[%clk 00:15:29]} 3.
exd5 {[%clk 00:15:33]} {[%emt 00:00:02]} cxd5 {[%clk 00:15:37]} {[%emt
00:00:02]} 4. c4 {[%clk 00:15:42]} Nf6 {[%clk 00:15:39]} {[%emt 00:00:08]} 5.
Nc3 {[%clk 00:15:50]} {[%emt 00:00:03]} Nc6 {[%emt 00:00:04]} 6. Nf3 {[%clk
00:15:57]} Be6 {[%clk 00:15:46]} {[%emt 00:00:10]} 7. c5 {[%clk 00:15:31]}
{[%emt 00:00:37]} g6 {[%clk 00:15:20]} {[%emt 00:00:36]} 8. Bb5 {[%clk
00:15:12]} {[%emt 00:00:29]} Bg7 {[%clk 00:14:46]} {[%emt 00:00:43]} 9. O-O
{[%clk 00:14:50]} {[%emt 00:00:32]} O-O {[%clk 00:14:43]} {[%emt 00:00:13]} 10.
h3 {[%clk 00:14:48]} {[%emt 00:00:12]} Ne4 {[%clk 00:14:25]} {[%emt 00:00:27]}
11. Re1 {[%clk 00:14:30]} {[%emt 00:00:29]} Bf5 {[%clk 00:14:03]} {[%emt
00:00:33]} 12. Bf4 {[%clk 00:13:15]} {[%emt 00:01:25]} f6 {[%clk 00:09:45]}
{[%emt 00:04:28]} 13. Rc1 {[%clk 00:12:38]} {[%emt 00:00:47]} Kh8 {[%clk
00:09:31]} {[%emt 00:00:24]} 14. Ba4 {[%clk 00:10:15]} {[%emt 00:02:33]} g5
{[%clk 00:09:18]} {[%emt 00:00:22]} 15. Bh2 {[%clk 00:09:11]} {[%emt 00:01:14]}
Rc8 {[%clk 00:08:18]} {[%emt 00:01:10]} 16. Bb3 {[%clk 00:08:35]} {[%emt
00:00:46]} Nxc3 {[%clk 00:08:17]} {[%emt 00:00:11]} 17. bxc3 {[%clk 00:07:50]}
{[%emt 00:00:55]} b6 {[%clk 00:08:05]} {[%emt 00:00:21]} 18. cxb6 {[%clk
00:07:11]} {[%emt 00:00:49]} axb6 {[%clk 00:08:10]} {[%emt 00:00:05]} 19. Qe2
{[%clk 00:06:34]} {[%emt 00:00:47]} Re8 {[%clk 00:08:00]} {[%emt 00:00:21]} 20.
Qb5 {[%clk 00:06:38]} {[%emt 00:00:06]} e6 {[%clk 00:07:35]} {[%emt 00:00:34]}
21. g4 {[%clk 00:06:06]} {[%emt 00:00:42]} Be4 {[%clk 00:06:31]} {[%emt
00:01:14]} 22. Nd2 {[%clk 00:06:03]} {[%emt 00:00:13]} Bg6 {[%clk 00:06:38]}
{[%emt 00:00:03]} 23. Nf3 {[%clk 00:05:49]} {[%emt 00:00:24]} Be4 {[%clk
00:06:40]} {[%emt 00:00:07]} 24. Nd2 {[%clk 00:05:58]} {[%emt 00:00:02]} Bg6
{[%clk 00:06:49]} {[%emt 00:00:01]} 25. Nf3 {[%clk 00:06:06]} {[%emt 00:00:02]}
1/2-1/2

[Event "NK Rapid Vrouwen 2019"]
[Site "Amstelveen, Netherlands"]
[Date "2019.12.01"]
[Round "7.3"]
[White "Roebers, Eline"]
[Black "Keetman, Maaike"]
[Result "1-0"]
[TimeControl "15m+10s"]
[WhiteFideId "1058401"]
[BlackFideId "1033697"]
[WhiteElo "2102"]
[BlackElo "2181"]

1. e4 {[%clk 00:15:18]} e6 {[%clk 00:15:19]} {[%emt 00:00:02]} 2. d4 {[%clk
00:15:27]} {[%emt 00:00:01]} d5 {[%clk 00:15:27]} {[%emt 00:00:01]} 3. Nc3
{[%clk 00:15:36]} Bb4 {[%clk 00:15:35]} {[%emt 00:00:02]} 4. Nge2 {[%clk
00:15:45]} {[%emt 00:00:01]} dxe4 {[%clk 00:15:15]} {[%emt 00:00:31]} 5. a3
{[%clk 00:15:54]} {[%emt 00:00:01]} Be7 {[%clk 00:15:23]} 6. Nxe4 {[%clk
00:15:56]} {[%emt 00:00:08]} Nf6 {[%clk 00:15:31]} {[%emt 00:00:02]} 7. Nxf6+
{[%clk 00:15:04]} {[%emt 00:01:03]} Bxf6 {[%clk 00:15:39]} {[%emt 00:00:01]} 8.
Be3 {[%clk 00:14:02]} {[%emt 00:01:11]} O-O {[%clk 00:13:46]} {[%emt 00:02:02]}
9. Qd2 {[%clk 00:14:08]} {[%emt 00:00:05]} b6 {[%clk 00:13:01]} {[%emt
00:00:55]} 10. O-O-O {[%clk 00:13:58]} {[%emt 00:00:20]} Bb7 {[%clk 00:13:10]}
11. Nf4 {[%clk 00:13:10]} {[%emt 00:00:58]} Nc6 {[%clk 00:07:33]} {[%emt
00:05:47]} 12. Be2 {[%clk 00:12:08]} {[%emt 00:01:12]} Nxd4 {[%clk 00:06:08]}
{[%emt 00:01:36]} 13. Bxd4 {[%clk 00:11:49]} {[%emt 00:00:29]} Qxd4 {[%clk
00:06:06]} {[%emt 00:00:12]} 14. Qxd4 {[%clk 00:11:34]} {[%emt 00:00:25]} Bxd4
{[%clk 00:06:15]} {[%emt 00:00:01]} 15. Rxd4 {[%clk 00:11:43]} e5 {[%clk
00:06:24]} {[%emt 00:00:01]} 16. Rc4 {[%clk 00:09:43]} {[%emt 00:02:10]} exf4
{[%clk 00:06:27]} {[%emt 00:00:07]} 17. Rxc7 {[%clk 00:08:23]} {[%emt
00:01:30]} Bxg2 {[%clk 00:06:22]} {[%emt 00:00:15]} 18. Rd1 {[%clk 00:08:33]}
Bh3 {[%clk 00:04:11]} {[%emt 00:02:21]} 19. Bf3 {[%clk 00:07:39]} {[%emt
00:01:04]} Rac8 {[%clk 00:03:18]} {[%emt 00:01:04]} 20. Rxa7 {[%clk 00:07:29]}
{[%emt 00:00:20]} Rc5 {[%clk 00:03:08]} {[%emt 00:00:19]} 21. Rb7 {[%clk
00:06:42]} {[%emt 00:00:57]} b5 {[%clk 00:02:32]} {[%emt 00:00:47]} 22. Rd5
{[%clk 00:06:28]} {[%emt 00:00:23]} Rc4 {[%clk 00:01:54]} {[%emt 00:00:48]} 23.
Rdxb5 {[%clk 00:05:52]} {[%emt 00:00:46]} Bf1 {[%clk 00:01:11]} {[%emt
00:00:52]} 24. Re5 {[%clk 00:04:04]} {[%emt 00:01:59]} Rd4 {[%clk 00:00:43]}
{[%emt 00:00:39]} 25. Re4 {[%clk 00:03:27]} {[%emt 00:00:46]} Rd6 {[%clk
00:00:31]} {[%emt 00:00:22]} 26. Rxf4 {[%clk 00:03:17]} {[%emt 00:00:21]} f6
{[%clk 00:00:33]} {[%emt 00:00:07]} 27. Re4 {[%clk 00:02:58]} {[%emt 00:00:29]}
Rc8 {[%clk 00:00:21]} {[%emt 00:00:22]} 28. Ree7 {[%clk 00:02:43]} {[%emt
00:00:25]} Bd3 {[%clk 00:00:18]} {[%emt 00:00:13]} 29. Rxg7+ {[%clk 00:02:26]}
{[%emt 00:00:27]} Kh8 {[%clk 00:00:27]} {[%emt 00:00:01]} 30. Rgc7 {[%clk
00:02:18]} {[%emt 00:00:19]} Rxc7 {[%clk 00:00:21]} {[%emt 00:00:15]} 31. Rxc7
{[%clk 00:02:27]} {[%emt 00:00:01]} Bg6 {[%clk 00:00:30]} {[%emt 00:00:02]} 32.
Rc6 {[%clk 00:02:23]} {[%emt 00:00:14]} 1-0

[Event "NK Rapid Vrouwen 2019"]
[Site "Amstelveen, Netherlands"]
[Date "2019.12.01"]
[Round "7.4"]
[White "Lanchava, Tea"]
[Black "Haast, Anne"]
[Result "0-1"]
[TimeControl "15m+10s"]
[WhiteTitle "IM"]
[BlackTitle "WGM"]
[WhiteFideId "1005308"]
[BlackFideId "1017292"]
[WhiteElo "2247"]
[BlackElo "2288"]

1. g3 {[%clk 00:15:14]} {[%emt 00:00:06]} f5 {[%clk 00:15:17]} {[%emt
00:00:04]} 2. Bg2 {[%clk 00:15:21]} {[%emt 00:00:03]} Nf6 {[%clk 00:15:22]}
{[%emt 00:00:05]} 3. d4 {[%clk 00:15:29]} {[%emt 00:00:01]} g6 {[%clk
00:15:26]} {[%emt 00:00:06]} 4. Nh3 {[%clk 00:15:24]} {[%emt 00:00:15]} Bg7
{[%clk 00:15:26]} {[%emt 00:00:10]} 5. c3 {[%clk 00:15:33]} {[%emt 00:00:01]}
O-O {[%clk 00:15:08]} {[%emt 00:00:28]} 6. Qb3+ {[%clk 00:15:35]} {[%emt
00:00:07]} d5 {[%clk 00:14:57]} {[%emt 00:00:22]} 7. Nf4 {[%clk 00:15:39]}
{[%emt 00:00:05]} c6 {[%clk 00:14:49]} {[%emt 00:00:19]} 8. O-O {[%clk
00:15:44]} {[%emt 00:00:05]} Ne4 {[%clk 00:14:26]} {[%emt 00:00:33]} 9. Nd2
{[%clk 00:14:46]} {[%emt 00:01:08]} Kh8 {[%clk 00:14:17]} {[%emt 00:00:19]} 10.
Nf3 {[%clk 00:14:44]} {[%emt 00:00:12]} a5 {[%clk 00:13:26]} {[%emt 00:01:01]}
11. a4 {[%clk 00:14:41]} {[%emt 00:00:13]} Qe8 {[%clk 00:12:58]} {[%emt
00:00:38]} 12. Nd3 {[%clk 00:14:35]} {[%emt 00:00:17]} Nd7 {[%clk 00:13:05]}
{[%emt 00:00:03]} 13. Nfe5 {[%clk 00:14:22]} {[%emt 00:00:22]} Ndf6 {[%clk
00:12:33]} {[%emt 00:00:42]} 14. f3 {[%clk 00:14:22]} {[%emt 00:00:09]} Nd6
{[%clk 00:12:40]} {[%emt 00:00:04]} 15. Qc2 {[%clk 00:14:06]} {[%emt 00:00:26]}
b6 {[%clk 00:12:07]} {[%emt 00:00:44]} 16. b3 {[%clk 00:14:13]} {[%emt
00:00:03]} Be6 {[%clk 00:11:50]} {[%emt 00:00:27]} 17. c4 {[%clk 00:14:02]}
{[%emt 00:00:21]} dxc4 {[%clk 00:11:22]} {[%emt 00:00:38]} 18. bxc4 {[%clk
00:14:09]} {[%emt 00:00:04]} Rc8 {[%clk 00:11:13]} {[%emt 00:00:19]} 19. c5
{[%clk 00:14:10]} {[%emt 00:00:09]} bxc5 {[%clk 00:11:19]} {[%emt 00:00:04]} 20.
dxc5 {[%clk 00:14:07]} {[%emt 00:00:12]} Nf7 {[%clk 00:10:59]} {[%emt
00:00:30]} 21. Rb1 {[%clk 00:14:00]} {[%emt 00:00:17]} Nxe5 {[%clk 00:10:46]}
{[%emt 00:00:24]} 22. Nxe5 {[%clk 00:14:06]} {[%emt 00:00:03]} Nd5 {[%clk
00:10:54]} {[%emt 00:00:02]} 23. Nc4 {[%clk 00:13:57]} {[%emt 00:00:19]} Nb4
{[%clk 00:10:21]} {[%emt 00:00:44]} 24. Qb3 {[%clk 00:13:49]} {[%emt 00:00:18]}
Qf7 {[%clk 00:10:24]} {[%emt 00:00:07]} 25. Bb2 {[%clk 00:12:39]} {[%emt
00:01:19]} Bxc4 {[%clk 00:10:30]} {[%emt 00:00:04]} 26. Bxg7+ {[%clk 00:12:47]}
{[%emt 00:00:02]} Kxg7 {[%clk 00:10:39]} {[%emt 00:00:01]} 27. Qc3+ {[%clk
00:12:56]} {[%emt 00:00:01]} Kg8 {[%clk 00:10:42]} {[%emt 00:00:07]} 28. Rfe1
{[%clk 00:12:51]} {[%emt 00:00:15]} Rcd8 {[%clk 00:10:31]} {[%emt 00:00:22]} 29.
e4 {[%clk 00:12:56]} {[%emt 00:00:04]} Rd3 {[%clk 00:10:29]} {[%emt 00:00:12]}
30. Qe5 {[%clk 00:12:58]} {[%emt 00:00:08]} Qf6 {[%clk 00:10:24]} {[%emt
00:00:16]} 31. Qc7 {[%clk 00:13:00]} {[%emt 00:00:07]} Rd2 {[%clk 00:09:31]}
{[%emt 00:01:03]} 32. e5 {[%clk 00:13:05]} {[%emt 00:00:05]} Qe6 {[%clk
00:09:34]} {[%emt 00:00:08]} 33. Qxa5 {[%clk 00:13:00]} {[%emt 00:00:15]} Rxg2+
{[%clk 00:09:11]} {[%emt 00:00:33]} 34. Kxg2 {[%clk 00:13:07]} {[%emt
00:00:03]} Nd3 {[%clk 00:09:17]} {[%emt 00:00:04]} 35. Re3 {[%clk 00:12:47]}
{[%emt 00:00:29]} f4 {[%clk 00:09:23]} {[%emt 00:00:04]} 36. gxf4 {[%clk
00:11:07]} {[%emt 00:01:51]} Nxf4+ {[%clk 00:09:19]} {[%emt 00:00:14]} 37. Kh1
{[%clk 00:11:15]} {[%emt 00:00:01]} Qh3 {[%clk 00:09:10]} {[%emt 00:00:19]} 38.
Qd2 {[%clk 00:11:21]} {[%emt 00:00:03]} Bd5 {[%clk 00:08:48]} {[%emt 00:00:34]}
39. Qf2 {[%clk 00:11:27]} {[%emt 00:00:03]} Nh5 {[%clk 00:08:45]} {[%emt
00:00:13]} 40. Qg2 {[%clk 00:07:42]} {[%emt 00:03:54]} Bxf3 {[%clk 00:08:37]}
{[%emt 00:00:19]} 41. Rxf3 {[%clk 00:07:49]} {[%emt 00:00:03]} Qxf3 {[%clk
00:08:42]} {[%emt 00:00:05]} 42. Qxf3 {[%clk 00:07:54]} {[%emt 00:00:05]} Rxf3
{[%clk 00:08:51]} {[%emt 00:00:01]} 43. Ra1 {[%clk 00:07:23]} {[%emt 00:00:41]}
Kf7 {[%clk 00:08:17]} {[%emt 00:00:45]} 44. a5 {[%clk 00:07:13]} {[%emt
00:00:20]} Ke6 {[%clk 00:08:22]} {[%emt 00:00:05]} 45. a6 {[%clk 00:06:49]}
{[%emt 00:00:33]} Rf8 {[%clk 00:08:30]} {[%emt 00:00:02]} 46. Rb1 {[%clk
00:06:57]} {[%emt 00:00:02]} Ra8 {[%clk 00:08:34]} {[%emt 00:00:06]} 47. Rb6
{[%clk 00:06:52]} {[%emt 00:00:15]} Kd5 {[%clk 00:08:42]} {[%emt 00:00:03]} 48.
Rb7 {[%clk 00:06:52]} {[%emt 00:00:10]} Rxa6 {[%clk 00:08:49]} {[%emt
00:00:03]} 49. Rxe7 {[%clk 00:06:56]} {[%emt 00:00:06]} Nf4 {[%clk 00:08:53]}
{[%emt 00:00:06]} 50. h4 {[%clk 00:06:36]} {[%emt 00:00:29]} h5 {[%clk
00:09:00]} {[%emt 00:00:03]} 51. Kh2 {[%clk 00:06:45]} {[%emt 00:00:01]} Ne6
{[%clk 00:08:51]} {[%emt 00:00:19]} 0-1